bitfinex/quotes_ETHUSD_20220113
["timestamp","ask_amount","ask_price","bid_price","bid_amount"]
[1642092789299,0.0022737,3308.0,3307.4,0.00113684]
[1642092789503,1.5141637,3308.0,3307.4,0.00113684]
[1642092789700,2.90814565,3307.9,3307.4,0.00113684]
[1642092790102,0.00113685,3307.8,3307.4,0.00113684]
[1642092791203,1.54561459,3307.8,3307.4,0.00113684]
[1642092791402,1.54561459,3307.8,3307.1,0.00284211]
[1642092792054,1.54561459,3307.8,3307.2,0.45354]
[1642092792451,0.00113685,3307.8,3307.3,0.00170527]
[1642092793450,1.54561459,3307.8,3307.3,0.00170527]
[1642092793651,2.63572241,3307.7,3307.3,0.00170527]
[1642092793950,3.39167241,3307.7,3307.1,0.00284211]
[1642092794654,2.63572241,3307.7,3307.1,0.00284211]
[1642092794852,9.41542241,3307.7,3307.2,0.30236]
[1642092795251,9.41542241,3307.7,3307.3,0.00170527]
[1642092795252,10.94762545,3307.7,3307.3,0.00170527]
[1642092795452,8.32417774,3307.7,3307.3,0.00170527]
[1642092795901,8.32417774,3307.7,3307.4,0.30234]
[1642092796304,1.54447774,3307.5,3307.4,0.30234]
[1642092797102,1.54447774,3307.5,3307.4,0.60623388]
[1642092797306,2.31963867,3307.8,3307.4,0.60623388]
[1642092797307,1.54561459,3307.8,3307.4,0.60623388]
[1642092797504,1.54561459,3307.8,3307.6,1.54148087]
[1642092797705,1.54158734,3307.8,3307.6,1.54148087]
[1642092798105,1.54158734,3307.8,3307.5,0.75579]
[1642092798306,0.75589,3307.9,3307.5,0.30232]
[1642092798509,0.75589,3307.9,3307.6,0.00113685]
[1642092798705,2.67060188,3308.0,3307.6,0.00113685]
[1642092799358,2.31850182,3307.9,3307.6,0.00113685]
[1642092799552,2.31850182,3307.9,3307.7,0.30233]
[1642092800353,2.31963867,3308.0,3307.7,0.30233]
[1642092800952,4.941015,3308.0,3307.7,0.30233]
[1642092801152,2.59960012,3308.0,3307.7,0.30233]
[1642092801452,5.18959202,3308.0,3307.6,0.00113685]
[1642092801653,2.59960012,3308.0,3307.6,0.00113685]
[1642092801854,2.59960012,3308.0,3307.5,0.00170527]
[1642092802052,5.191997,3308.0,3307.5,0.00170527]
[1642092802253,2.59960012,3308.0,3307.5,0.00170527]
[1642092802456,0.78737309,3307.9,3307.5,0.00170527]
[1642092802655,0.78737309,3307.9,3307.7,0.30233]
[1642092802853,2.58587869,3307.8,3307.5,0.00170527]
[1642092803105,7.056,3307.6,3307.5,0.00170527]
[1642092803404,7.056,3307.6,3306.1,0.03746001]
[1642092803405,0.00974237,3307.4,3306.1,0.6804613]
[1642092803606,3.92094666,3307.4,3306.9,0.00341054]
[1642092803906,0.78737309,3307.3,3306.9,0.00341054]
[1642092804104,2.82554274,3307.2,3306.9,0.00341054]
[1642092804304,1.54347309,3307.1,3306.6,0.00511581]
[1642092804506,3.60422753,3307.0,3306.7,0.00454739]
[1642092804707,0.87464563,3306.9,3306.5,0.00568424]
[1642092804906,0.87464563,3306.9,3305.2,3.02383]
[1642092804907,2.71131207,3306.8,3306.1,0.00795793]
[1642092805111,3.5859577,3306.8,3305.8,0.60755818]
[1642092805307,3.3359577,3306.8,3306.0,0.75616]
[1642092805508,0.87464563,3306.8,3306.3,0.30247]
[1642092805708,3.49338626,3306.7,3306.1,0.00795793]
[1642092805906,0.87464563,3306.7,3306.4,0.00625266]
[1642092806107,0.87464563,3306.7,3306.1,0.00795793]
[1642092806306,1.63082563,3306.7,3306.1,0.00795793]
[1642092806507,4.2292889,3306.7,3306.1,0.00795793]
[1642092806707,3.4731089,3306.7,3306.4,0.30246]
[1642092807153,3.4731089,3306.7,3306.5,0.00568424]
[1642092807554,2.59846327,3306.6,3306.5,0.00568424]
[1642092807757,3.43180742,3306.6,3306.5,0.00568424]
[1642092808155,3.43180742,3306.6,3306.5,1.2814318]
[1642092808353,3.38180742,3306.6,3306.5,1.2814318]
[1642092810359,3.08932953,3306.6,3306.5,1.2814318]
[1642092811604,3.08932953,3306.6,3306.5,0.00568424]
[1642092812004,5.53932953,3306.6,3306.5,0.00568424]
[1642092812406,6.55182953,3306.6,3306.5,0.00568424]
[1642092812911,6.55182953,3306.6,3305.8,0.0096632]
[1642092813608,0.49970948,3306.5,3305.6,0.01080005]
[1642092813808,1.03844515,3306.5,3305.6,0.01080005]
[1642092814009,5.08153567,3306.4,3305.6,0.01080005]
[1642092814208,0.75631,3306.2,3305.7,0.30251]
[1642092814458,0.53873567,3306.1,3305.7,0.30251]
[1642092814652,0.53873567,3306.1,3305.8,0.0096632]
[1642092815052,7.14668406,3306.4,3305.8,0.0096632]
[1642092815053,0.56003722,3306.0,3305.8,0.0096632]
[1642092815255,3.56003722,3305.9,3305.8,0.0096632]
[1642092815457,3.56003722,3305.9,3305.6,0.01080005]
[1642092816355,3.56003722,3305.9,3305.6,0.76705005]
[1642092816755,0.56003722,3305.9,3305.7,0.01023162]
[1642092816956,0.43161778,3305.9,3305.7,0.01023162]
[1642092817156,0.43161778,3305.9,3305.7,0.61517162]
[1642092817355,0.43161778,3305.9,3305.7,0.60494]
[1642092817555,3.58161778,3305.9,3305.8,0.0096632]
[1642092818203,3.58161778,3305.9,3305.8,0.7658432]
[1642092819503,0.43161778,3305.9,3305.8,0.7658432]
[1642092819704,0.44933703,3305.9,3305.8,0.7658432]
[1642092820507,0.34293352,3305.9,3305.8,0.7658432]
[1642092820703,8.39637764,3306.3,3306.1,0.61201245]
[1642092820704,0.34293352,3306.2,3306.1,0.61201245]
[1642092821105,0.34293352,3306.2,3306.1,0.61997038]
[1642092821705,0.34293352,3306.3,3306.1,0.61997038]
[1642092822161,0.34293352,3306.3,3306.2,0.00738951]
[1642092822360,4.5428,3306.4,3306.2,0.00738951]
[1642092826409,4.5428,3306.4,3306.0,0.00852635]
[1642092826410,6.50283403,3306.3,3306.0,0.00852635]
[1642092826811,6.50283403,3306.3,3305.6,0.60497]
[1642092826812,6.50283403,3306.3,3305.7,0.01023162]
[1642092827211,6.50283403,3306.3,3305.6,0.01080005]
[1642092828216,8.05251167,3306.3,3305.6,0.01080005]
[1642092828414,8.80877167,3306.3,3305.6,0.01080005]
[1642092829456,4.14943821,3306.2,3305.7,1.38871647]
[1642092829653,4.14943821,3306.2,3305.9,0.3025]
[1642092830051,4.14943821,3306.2,3306.0,0.00852635]
[1642092830455,6.57556914,3306.1,3306.0,0.00852635]
[1642092830654,0.75633,3306.0,3305.8,0.0096632]
[1642092830859,3.1,3305.9,3305.6,0.69146395]
[1642092831054,4.14943821,3306.2,3305.6,0.69146395]
[1642092831258,4.14943821,3306.2,3305.7,3.20607397]
[1642092831456,4.14943821,3306.2,3305.8,1.13641383]
[1642092831657,1.54800275,3306.3,3305.9,6.31268166]
[1642092831858,1.54800275,3306.3,3306.0,2.59002095]
[1642092832158,2.31850182,3306.5,3306.1,0.63116678]
[1642092832357,2.31850182,3306.5,3306.2,0.364]
[1642092832557,3.90118628,3306.7,3306.2,0.37138951]
[1642092832758,11.1607,3306.8,3306.4,1.22822919]
[1642092832957,11.1607,3306.8,3306.5,1.05826]
[1642092833202,3.90118628,3307.1,3306.7,0.56106248]
[1642092833406,3.90118628,3307.1,3306.8,0.37564873]
[1642092833604,3.90118628,3307.1,3306.8,0.36797897]
[1642092834013,3.90118628,3307.2,3306.9,1.2092]
[1642092834203,3.90118628,3307.2,3307.1,5.08851577]
[1642092834405,3.90118628,3307.2,3307.1,5.48693454]
[1642092834705,3.90118628,3307.2,3307.1,10.7689458]
[1642092834706,8.628e-05,3307.2,3307.1,10.7689458]
[1642092835305,6.3175,3308.2,3307.5,0.75559]
[1642092835505,6.3175,3308.2,3307.6,0.364]
[1642092835705,0.00113685,3307.7,3307.6,0.364]
[1642092835908,0.00113685,3307.7,3307.6,0.39825501]
[1642092836106,0.00113685,3307.7,3307.6,1.91694201]
[1642092836308,0.00113685,3307.7,3307.6,2.43120398]
[1642092837153,0.00113685,3307.7,3307.6,3.03569398]
[1642092837353,6.3175,3308.2,3307.6,3.03569398]
[1642092837354,6.26863685,3308.2,3307.6,3.03569398]
[1642092837554,6.21863685,3308.2,3308.0,0.2267]
[1642092837955,6.21863685,3308.2,3308.1,1.98820452]
[1642092838258,6.21863685,3308.2,3308.1,5.26737468]
[1642092838259,0.00284211,3308.2,3308.1,5.26737468]
[1642092838458,3.20967511,3308.7,3308.2,4.73948225]
[1642092838655,3.20967511,3308.7,3308.5,0.22661]
[1642092838855,3.20967511,3308.7,3308.6,2.864]
[1642092839063,3.82608612,3309.2,3308.6,4.88997519]
[1642092839260,3.82608612,3309.2,3309.1,0.49839296]
[1642092839656,0.00568424,3309.2,3309.1,3.49839296]
[1642092839855,0.00568424,3309.2,3309.1,3.89272621]
[1642092840055,0.00568424,3309.2,3309.1,0.89272621]
[1642092841119,0.00568424,3309.2,3309.1,0.364]
[1642092841312,0.00568424,3309.2,3308.9,1.96383]
[1642092841513,0.00568424,3309.2,3308.5,0.45328]
[1642092841810,0.00511581,3309.1,3308.5,0.45328]
[1642092842211,0.00454739,3309.0,3308.5,1.9642]
[1642092842411,0.00454739,3309.0,3308.5,3.46156854]
[1642092842611,1.54465633,3309.2,3308.7,0.98215]
[1642092842612,0.00397897,3308.9,3308.7,0.98215]
[1642092843012,1.54465633,3309.2,3308.8,0.03765228]
[1642092843218,1.54465633,3308.9,3308.8,0.03765228]
[1642092843515,1.54465633,3308.9,3308.8,1.11678098]
[1642092844114,1.54465633,3308.9,3308.7,0.7555]
[1642092844367,1.54465633,3308.9,3308.6,0.15108]
[1642092844368,1.54465633,3308.9,3308.6,0.90657]
[1642092844560,0.00341054,3308.8,3308.6,1.4353892]
[1642092844859,0.00284212,3308.7,3308.6,1.4353892]
[1642092845561,0.00284212,3308.7,3308.6,1.12069194]
[1642092846366,0.00284212,3308.7,3308.5,1.76263684]
[1642092846763,1.54465633,3309.3,3308.5,0.30217]
[1642092846764,0.0022737,3308.6,3308.5,0.30217]
[1642092847664,0.0022737,3308.6,3308.5,1.52996193]
[1642092850608,0.0022737,3308.6,3308.5,4.26266795]
[1642092851713,0.0022737,3308.6,3308.5,1.56266795]
[1642092852363,0.0022737,3308.6,3308.5,0.30217]
[1642092852562,0.0022737,3308.6,3308.2,1.81327]
[1642092852762,0.0022737,3308.6,3307.9,0.34027501]
[1642092852961,0.00170527,3308.5,3307.9,0.34027501]
[1642092853162,0.00170527,3308.5,3308.1,0.15113]
[1642092853460,1.01213507,3309.1,3308.1,1.19578494]
[1642092853461,0.00113685,3308.4,3308.1,1.19578494]
[1642092853862,2.60210976,3309.0,3308.1,1.19578494]
[1642092854160,0.00397897,3308.9,3308.1,1.23301366]
[1642092854561,0.00341054,3308.8,3308.2,0.7556]
[1642092854761,0.00341054,3308.8,3308.3,0.15112]
[1642092854962,0.00284212,3308.7,3308.3,0.15112]
[1642092855162,0.00284212,3308.7,3308.3,0.6800172]
[1642092855363,0.0022737,3308.6,3308.3,0.6800172]
[1642092855611,0.0022737,3308.6,3308.3,0.15112]
[1642092855816,0.00170527,3308.5,3308.1,0.18144934]
[1642092856112,0.00113685,3308.4,3308.1,0.18144934]
[1642092856513,0.00397897,3308.9,3308.1,0.18144934]
[1642092856712,2.6512484,3308.9,3308.1,0.18144934]
[1642092856915,0.00341054,3308.8,3308.1,0.18144934]
[1642092857312,0.00284212,3308.7,3308.2,0.7556]
[1642092857514,0.00284212,3308.7,3308.3,0.15112]
[1642092857714,2.59756237,3309.0,3308.3,0.15112]
[1642092857715,0.0022737,3308.6,3308.3,0.15112]
[1642092858113,0.00170527,3308.5,3308.3,1.30787078]
[1642092858513,0.00113685,3308.4,3308.3,1.30787078]
[1642092860157,0.00113685,3308.4,3308.3,1.15675078]
[1642092860557,0.00113685,3308.4,3308.3,1.19022213]
[1642092861357,0.00113685,3308.4,3308.3,9.85019307]
[1642092861956,2.59756237,3309.0,3308.3,9.85019307]
[1642092862160,2.59756237,3309.0,3308.8,1.5860537]
[1642092862357,2.59756237,3309.0,3308.9,2.24565103]
[1642092862857,2.60097291,3309.0,3308.9,2.24565103]
[1642092863113,0.00341054,3309.0,3308.9,2.24565103]
[1642092863312,0.00341054,3309.0,3308.9,2.84987103]
[1642092863809,0.00341054,3309.0,3308.9,1.52638917]
[1642092864013,0.00341054,3309.0,3308.9,0.88437204]
[1642092864210,0.00341054,3309.0,3308.9,0.92170357]
[1642092864717,0.00341054,3309.0,3308.9,0.91924225]
[1642092865112,0.00341054,3309.0,3308.9,0.364]
[1642092865311,0.00341054,3309.0,3308.7,1.05742]
[1642092865312,0.00341054,3309.0,3308.1,0.364]
[1642092865512,0.00800002,3308.9,3308.0,0.03972205]
[1642092865712,0.01084214,3308.9,3308.6,0.5288549]
[1642092865912,0.00227369,3308.8,3308.6,0.5288549]
[1642092866312,0.00170527,3308.7,3308.6,0.75551]
[1642092866512,0.00170527,3308.7,3308.3,1.51102]
[1642092866712,0.00170527,3308.7,3308.1,0.00170527]
[1642092866961,0.01971681,3308.6,3308.1,0.00170527]
[1642092867368,4.25778635,3308.8,3307.4,0.59033516]
[1642092867560,9.56559032,3308.8,3307.5,0.15114]
[1642092867760,0.00170527,3308.7,3307.9,0.75567]
[1642092867960,0.00170527,3308.7,3308.0,0.5289487]
[1642092868160,0.00113685,3308.6,3308.0,0.53122239]
[1642092868360,0.00113685,3308.6,3308.1,0.00170527]
[1642092868561,6.4243,3308.8,3308.1,0.00170527]
[1642092868562,2.59926764,3308.7,3308.1,0.00170527]
[1642092868762,2.59926764,3308.7,3308.3,0.75558]
[1642092868963,0.00113685,3308.6,3308.3,0.75558]
[1642092869162,0.00113685,3308.6,3308.3,1.2844694]
[1642092869763,0.00113685,3308.6,3308.2,1.51111]
[1642092870363,0.00113685,3308.6,3308.0,1.09599711]
[1642092870364,0.00113685,3308.6,3308.0,0.03821831]
[1642092870602,0.00113685,3308.6,3308.1,1.0568059]
[1642092870806,2.59869922,3308.6,3308.1,0.52957797]
[1642092871003,2.59869922,3308.6,3308.2,0.00113685]
[1642092872110,2.59869922,3308.6,3308.3,0.75559]
[1642092872305,2.59869922,3308.6,3308.4,0.5289016]
[1642092872707,2.59869922,3308.6,3308.4,0.5615788]
[1642092872906,2.59869922,3308.6,3308.4,0.5289016]
[1642092873107,2.59869922,3308.6,3308.3,0.75559]
[1642092873306,0.00113685,3308.6,3308.3,0.75559]
[1642092874761,0.00113685,3308.6,3308.2,0.00113685]
[1642092874762,2.71454452,3308.6,3308.2,0.00113685]
[1642092875060,2.71454452,3308.6,3307.7,0.00397896]
[1642092875458,3.47029452,3308.6,3307.5,0.00511581]
[1642092875957,3.47029452,3308.6,3307.5,0.76092581]
[1642092876358,3.47029452,3308.6,3307.6,0.00454739]
[1642092876758,1.54465633,3308.3,3307.6,0.00454739]
[1642092876960,8.64193516,3308.2,3307.6,0.00454739]
[1642092877157,8.61479194,3308.2,3307.6,0.00454739]
[1642092877360,5.9623,3308.2,3307.6,0.00454739]
[1642092877569,8.61827825,3308.2,3307.6,0.00454739]
[1642092877962,2.59756237,3308.1,3307.6,0.00454739]
[1642092878205,2.59756237,3308.1,3307.5,0.00511581]
[1642092878206,2.90888471,3308.0,3307.5,0.00511581]
[1642092878405,2.90888471,3308.0,3307.4,0.00568423]
[1642092878607,1.1496,3307.9,3307.0,0.00795793]
[1642092878807,5.35023177,3307.8,3306.7,0.0096632]
[1642092879008,12.03133177,3307.8,3306.7,0.0096632]
[1642092879208,12.03133177,3307.8,3306.6,0.63267494]
[1642092879406,12.03133177,3307.8,3306.7,0.0096632]
[1642092879606,12.03133177,3307.8,3306.9,0.75591]
[1642092879807,10.89226824,3307.8,3306.7,0.0096632]
[1642092880010,10.89226824,3307.8,3307.0,0.00795793]
[1642092880309,10.89226824,3307.8,3306.8,2.1164]
[1642092880509,10.90697021,3307.8,3307.1,2.07724663]
[1642092880708,1.54465633,3307.6,3307.1,2.07724663]
[1642092880908,1.54465633,3307.6,3307.2,0.00682108]
[1642092881511,1.54465633,3307.6,3307.2,0.53592008]
[1642092881957,2.59756237,3307.5,3307.3,0.00625266]
[1642092882360,2.59756237,3307.5,3307.3,0.04415749]
[1642092882759,2.59756237,3307.5,3307.4,0.00568423]
[1642092883860,2.59756237,3307.7,3307.4,0.00568423]
[1642092884057,2.59756237,3307.7,3307.5,0.75577]
[1642092884260,2.59756237,3307.7,3307.6,1.91202508]
[1642092884458,2.59756237,3307.7,3307.6,1.91657247]
[1642092885909,2.59756237,3307.8,3307.6,1.91657247]
[1642092886111,2.59756237,3307.8,3307.6,2.44554007]
[1642092886310,2.59756237,3307.8,3307.7,0.00397896]
[1642092886711,9.85873273,3308.2,3307.7,0.00397896]
[1642092886914,3.89643273,3308.1,3307.9,0.7557]
[1642092887112,3.89643273,3308.1,3307.9,1.2846849]
[1642092887311,3.89643273,3308.1,3308.0,0.00227369]
[1642092887912,5.9623,3308.2,3308.0,0.03466303]
[1642092888115,5.9623,3308.2,3308.0,0.00227369]
[1642092888313,5.9623,3308.2,3308.1,0.00170527]
[1642092888512,5.9623,3308.2,3308.0,0.03352436]
[1642092888712,5.9623,3308.2,3308.1,0.00170527]
[1642092889857,5.9623,3308.2,3308.1,0.31570527]
[1642092891358,0.00113685,3308.6,3308.2,0.02815247]
[1642092891559,0.00113685,3308.6,3308.4,0.5288491]
[1642092891758,0.00227369,3308.5,3308.4,0.56712875]
[1642092891959,0.00227369,3308.5,3308.3,1.8131981]
[1642092892158,0.00227369,3308.5,3307.8,1.51124]
[1642092892159,0.00227369,3308.5,3307.8,1.54462691]
[1642092892358,0.00170527,3308.4,3307.8,0.03338691]
[1642092892557,0.00170527,3308.4,3307.9,0.00113685]
[1642092892758,0.00113685,3308.3,3307.9,0.00113685]
[1642092892957,0.00113685,3308.3,3307.7,0.00227369]
[1642092893211,2.80324592,3308.4,3307.7,0.00227369]
[1642092893414,0.75582,3308.3,3307.7,0.00227369]
[1642092893611,2.6602562,3308.2,3307.7,0.00227369]
[1642092893812,2.59451136,3308.2,3307.7,0.00227369]
[1642092894012,2.59451136,3308.2,3307.6,0.5290592]
[1642092894414,2.59451136,3308.2,3307.7,0.00227369]
[1642092894814,2.59451136,3308.2,3307.4,0.00397896]
[1642092895214,2.59451136,3308.2,3307.4,1.28889376]
[1642092895416,0.75587,3308.1,3307.4,0.53306376]
[1642092895615,2.68808629,3308.0,3307.5,0.00341054]
[1642092896616,0.75587,3308.1,3307.5,0.00341054]
[1642092896874,4.9876498,3308.1,3307.5,0.00341054]
[1642092898368,2.30052633,3308.1,3307.5,0.00341054]
[1642092898570,2.63725845,3308.0,3307.6,0.5290695]
[1642092898769,2.63101482,3308.0,3307.6,0.5290695]
[1642092898967,1.54465633,3308.1,3307.7,0.00227369]
[1642092899769,2.63297185,3308.0,3307.7,0.00227369]
[1642092899969,1.54465633,3308.1,3307.7,0.00227369]
[1642092900169,4.39714734,3308.2,3307.7,0.00227369]
[1642092901214,4.39714734,3308.2,3307.8,0.5290451]
[1642092901614,1.54465633,3308.2,3307.8,0.5290451]
[1642092901815,1.54465633,3308.1,3307.8,0.5290451]
[1642092902714,2.59813153,3308.0,3307.8,0.5290451]
[1642092903720,2.59813153,3308.0,3307.7,0.00227369]
[1642092904216,1.54465633,3308.2,3307.7,0.00227369]
[1642092904664,2.619834,3308.1,3307.7,0.00227369]
[1642092905066,2.59813153,3307.9,3307.7,0.00227369]
[1642092905364,10.4219,3307.8,3307.5,0.00341054]
[1642092905765,10.4219,3307.8,3307.5,0.53249654]
[1642092906166,10.4219,3307.8,3307.6,0.00284212]
[1642092906472,5.47618003,3307.7,3307.6,0.00284212]
[1642092907065,8.07431156,3307.7,3307.6,0.00284212]
[1642092908414,7.64813153,3307.7,3307.6,0.00284212]
[1642092910016,7.64813153,3307.7,3307.5,0.53250314]
[1642092910218,7.64813153,3307.7,3307.6,0.00284212]
[1642092910416,2.59813153,3307.7,3307.6,0.00284212]
[1642092910617,2.59813153,3307.7,3307.6,0.47688881]
[1642092910818,2.59813153,3307.7,3307.6,0.51186541]
[1642092913262,2.59813153,3307.7,3307.6,0.87586541]
[1642092913863,0.12089553,3307.7,3307.6,0.87586541]
[1642092914364,0.12089553,3307.7,3307.6,0.40181872]
[1642092914563,0.12089553,3307.7,3307.6,0.00284212]
[1642092914763,3.77089553,3307.7,3307.6,0.03668857]
[1642092914964,3.77089553,3307.7,3307.6,0.00284212]
[1642092915363,3.65,3307.7,3307.6,0.00284212]
[1642092916621,3.65,3307.7,3307.3,0.00454739]
[1642092916819,6.9022,3307.6,3306.8,0.00738951]
[1642092917019,6.9022,3307.6,3306.4,0.0096632]
[1642092917219,8.1409,3307.6,3306.3,0.01023162]
[1642092917621,8.1409,3307.6,3306.4,1.2853072]
[1642092917821,9.0895,3307.6,3306.4,0.5292472]
[1642092918120,9.0895,3307.6,3306.2,0.45882085]
[1642092918121,0.8306062,3307.5,3306.5,0.00909478]
[1642092918520,5.8845,3307.4,3306.3,0.01023162]
[1642092918721,0.00581531,3307.3,3306.3,0.01023162]
[1642092919022,0.75623,3307.3,3306.3,0.01023162]
[1642092919223,0.00776419,3307.2,3306.3,0.01023162]
[1642092919671,5.8845,3307.4,3306.3,0.01023162]
[1642092919871,5.8845,3307.4,3305.9,0.01250532]
[1642092920072,1.54465633,3306.7,3305.9,0.01250532]
[1642092920272,2.30086633,3306.7,3305.9,0.01250532]
[1642092920670,0.39853288,3306.6,3305.9,0.01250532]
[1642092921273,0.39853288,3306.6,3305.9,0.04580048]
[1642092921671,0.39853288,3306.6,3306.0,0.01193689]
[1642092926218,0.39853288,3306.6,3305.9,0.01250532]
[1642092926418,1.51236,3306.7,3305.8,0.70100517]
[1642092926419,0.01226577,3306.4,3305.8,0.70100517]
[1642092926717,6.068,3306.4,3305.8,0.73363018]
[1642092927466,6.068,3306.4,3305.8,0.302461]
[1642092927665,6.068,3306.4,3305.8,0.75616]
[1642092927867,6.068,3306.4,3305.6,1.8148]
[1642092928267,6.068,3306.4,3305.7,0.00113684]
[1642092928467,0.75627,3306.3,3305.7,0.00113684]
[1642092928667,2.63273097,3306.2,3305.7,0.00113684]
[1642092928868,1.22160527,3306.2,3305.2,0.00397896]
[1642092929069,0.00113685,3306.1,3305.2,0.00397896]
[1642092929467,1.51404685,3306.1,3305.2,0.00397896]
[1642092929870,1.51404685,3306.1,3305.1,0.00454738]
[1642092930367,0.01280768,3305.9,3305.1,0.00454738]
[1642092933820,0.00439871,3305.8,3305.1,0.00454738]
[1642092934225,0.01280768,3305.9,3305.1,0.00454738]
[1642092934470,2.6000498,3305.8,3305.1,0.00454738]
[1642092934668,3.13968141,3305.7,3305.1,0.00454738]
[1642092934867,0.31379634,3305.6,3305.1,0.00454738]
[1642092935072,3.81081046,3305.5,3305.1,0.00454738]
[1642092935268,0.31379634,3305.4,3305.1,0.00454738]
[1642092935468,7.00661,3305.2,3305.1,0.00454738]
[1642092935669,10.26628942,3305.2,3305.1,0.00454738]
[1642092935867,16.56388942,3305.2,3305.1,0.00454738]
[1642092937369,16.56388942,3305.2,3304.3,0.01921625]
[1642092937572,9.51629237,3305.1,3304.3,0.01921625]
[1642092938615,0.32333762,3305.1,3304.3,0.01921625]
[1642092938814,0.32333762,3305.1,3304.3,0.05515802]
[1642092939015,0.32333762,3305.1,3304.9,1.10701157]
[1642092939415,0.31365079,3305.1,3304.9,1.86338157]
[1642092939615,0.31365079,3305.1,3304.9,1.90065972]
[1642092940417,6.2907,3305.4,3304.9,1.90065972]
[1642092940617,6.2907,3305.4,3305.0,1.53122667]
[1642092940819,0.00113685,3305.3,3305.1,0.03934405]
[1642092941719,0.00113685,3305.3,3305.2,0.3024791]
[1642092941992,0.00113685,3305.3,3305.2,5.4550042]
[1642092942194,0.00113685,3305.3,3305.2,8.27105234]
[1642092942492,6.3121,3306.1,3305.3,6.25]
[1642092942691,6.3121,3306.1,3305.7,1.51219]
[1642092942899,0.00397896,3306.0,3305.8,0.33310205]
[1642092943093,0.00397896,3306.0,3305.9,1.3006688]
[1642092943292,6.2918,3306.5,3305.9,1.33245215]
[1642092943492,6.2918,3306.5,3306.0,0.48986861]
[1642092943693,0.00454738,3306.1,3306.0,0.48986861]
[1642092944492,0.00454738,3306.1,3306.0,0.52796573]
[1642092944693,0.00454738,3306.1,3306.0,0.48986861]
[1642092944894,0.00454738,3306.1,3305.9,1.3313532]
[1642092945292,0.00397896,3306.0,3305.9,1.3313532]
[1642092949224,0.00397896,3306.0,3305.9,0.0306844]
[1642092949473,0.00397896,3306.0,3305.7,1.51219]
[1642092949474,0.00397896,3306.0,3305.3,1.51257]
[1642092949672,0.00397896,3306.0,3305.0,0.46363036]
[1642092949870,0.00341053,3305.9,3305.0,0.49635829]
[1642092950070,0.00341053,3305.9,3305.3,1.18442798]
[1642092950370,0.00284211,3305.8,3305.3,1.2193159]
[1642092950770,2.71296951,3306.2,3305.3,1.2193159]
[1642092950771,0.00227369,3305.7,3305.3,1.2193159]
[1642092951170,3.71296951,3306.2,3305.4,0.75634]
[1642092951171,0.00170526,3305.6,3305.4,0.75634]
[1642092951373,0.00170526,3305.6,3305.5,0.03244371]
[1642092951573,3.35623737,3306.1,3305.5,0.03244371]
[1642092951773,3.35623737,3306.1,3305.3,1.18442798]
[1642092951971,3.35623737,3306.1,3305.1,0.51876006]
[1642092951972,0.7563583,3305.4,3305.1,0.51876006]
[1642092952170,0.7563583,3305.4,3305.1,0.00113685]
[1642092952370,5.8926,3305.3,3305.1,0.00113685]
[1642092955020,5.8426,3305.3,3305.1,0.00113685]
[1642092955622,2.62507444,3305.2,3305.1,0.00113685]
[1642092956320,6.5990771,3305.3,3305.1,0.00113685]
[1642092956868,5.8426,3305.3,3305.1,0.00113685]
[1642092957869,5.8426,3305.3,3305.2,1.32085597]
[1642092958076,0.00227369,3305.7,3305.2,1.32085597]
[1642092958370,0.00170526,3305.6,3305.2,1.32085597]
[1642092958773,0.00113684,3305.5,3305.2,1.32085597]
[1642092959170,0.00227369,3305.7,3305.2,1.32085597]
[1642092959370,0.00227369,3305.7,3305.3,0.60496]
[1642092959569,0.00170526,3305.6,3305.3,0.60496]
[1642092959972,0.00113684,3305.5,3305.3,0.60496]
[1642092960372,0.00227369,3305.7,3305.2,1.32085597]
[1642092960815,0.00170526,3305.6,3305.2,1.32085597]
[1642092961016,0.00170526,3305.6,3305.1,0.00113685]
[1642092961220,0.00113684,3305.5,3305.1,0.00113685]
[1642092961516,0.7563298,3305.4,3305.1,0.00113685]
[1642092961916,6.5724298,3305.4,3305.1,0.00113685]
[1642092963917,2.59969455,3305.3,3305.1,0.00113685]
[1642092964115,3.35618965,3305.3,3305.1,0.00113685]
[1642092965771,7.39415492,3305.2,3305.1,0.00113685]
[1642092966174,5.9954,3305.2,3305.1,0.00113685]
[1642092966580,11.43989612,3305.2,3305.0,0.01866667]
[1642092966773,6.2,3305.0,3304.1,0.4594239]
[1642092966974,0.7566698,3304.7,3304.1,0.4594239]
[1642092967177,2.82070249,3304.6,3304.4,0.00397897]
[1642092968423,1.64366,3304.7,3304.4,0.00397897]
[1642092968628,0.7566532,3304.6,3304.4,0.00397897]
[1642092969228,5.79969455,3304.5,3304.4,0.00397897]
[1642092970227,2.59969455,3304.5,3304.4,0.00397897]
[1642092971628,3.28389455,3304.5,3304.4,0.00397897]
[1642092973071,0.75653,3304.7,3304.4,0.00397897]
[1642092973272,0.2282,3304.6,3304.4,0.00397897]
[1642092973473,0.9847308,3304.6,3304.4,0.00397897]
[1642092973673,8.52273401,3304.5,3304.4,0.00397897]
[1642092974072,4.844,3304.3,3303.6,0.48441902]
[1642092974273,6.74462,3304.2,3303.6,0.01976584]
[1642092974478,10.57256422,3304.2,3303.7,0.00397896]
[1642092974873,1.0868107,3304.0,3303.7,0.00397896]
[1642092975072,4.7443742,3304.0,3303.7,0.00397896]
[1642092975273,2.0912107,3304.0,3303.7,0.00397896]
[1642092975928,2.64624234,3303.9,3303.7,0.00397896]
[1642092976126,2.0912107,3304.0,3303.7,0.00397896]
[1642092976822,1.8808107,3304.0,3303.7,0.00397896]
[1642092979775,2.6376307,3304.0,3303.7,0.00397896]
[1642092979974,2.3075307,3304.0,3303.7,0.00397896]
[1642092980179,1.51365,3303.9,3303.7,0.00397896]
[1642092980375,3.0272413,3303.9,3303.7,0.00397896]
[1642092980777,1.5135913,3303.9,3303.7,0.00397896]
[1642092982780,1.5135107,3304.0,3303.7,0.00397896]
[1642092982981,0.7568,3304.0,3303.7,0.00397896]
[1642092984321,1.5134709,3304.0,3303.7,0.00397896]
[1642092986724,0.7568,3304.0,3303.7,0.00397896]
[1642092987471,1.2247,3304.1,3303.7,0.00397896]
[1642092987671,5.9879,3304.2,3303.7,0.00397896]
[1642092987672,5.9879,3304.2,3303.9,0.58205788]
[1642092988072,5.9879,3304.2,3304.0,0.00227369]
[1642092989271,5.9879,3304.2,3304.1,0.60518]
[1642092989672,5.9879,3304.2,3304.1,0.60688527]
[1642092991941,5.9879,3304.2,3304.1,0.00170527]
[1642092992340,5.9879,3304.2,3304.0,0.60522]
[1642092992544,5.9879,3304.2,3304.1,0.00170527]
[1642092993540,5.9879,3304.2,3303.9,0.00284212]
[1642092994142,6.74453,3304.2,3303.9,0.00284212]
[1642092994369,0.7566365,3304.1,3303.9,0.00284212]
[1642092994571,6.74453,3304.2,3303.9,0.00284212]
[1642092996372,5.9879,3304.2,3303.9,0.00284212]
[1642092997775,7.1778,3304.2,3303.9,0.00284212]